[Event "Titled Tuesday Blitz March 01 Late 2022"]
[White "Voit, Daria"]
[Black "Mirzoev, Azer"]
[WhiteFideId "4182146"]
[BlackFideId "13400304"]
[WhiteElo "2323"]
[BlackElo "2525"]
[Result "0-1"]
[Round "05"]
[TimeControl "180+1"]
[Date "2022.03.01"]
[WhiteClock "0:00:02"]
[BlackClock "0:00:09"]

1. c4 {[%clk 0:03:00]}  c5 {[%clk 0:02:59]} 2. Nc3 {[%clk 0:02:55]}  b6 {[%clk 0:02:59]} 3. Nf3 {[%clk 0:02:54]}  Bb7 {[%clk 0:02:59]} 4. e4 {[%clk 0:02:54]}  e6 {[%clk 0:02:54]} 5. Be2 {[%clk 0:02:53]}  Nf6 {[%clk 0:02:47]} 6. e5 {[%clk 0:02:48]}  Ng4 {[%clk 0:02:45]} 7. h3 {[%clk 0:02:46]}  Nh6 {[%clk 0:02:44]} 8. d4 {[%clk 0:02:40]}  cxd4 {[%clk 0:02:44]} 9. Qxd4 {[%clk 0:02:39]}  Nf5 {[%clk 0:02:42]} 10. Qf4 {[%clk 0:02:35]}  Bb4 {[%clk 0:02:24]} 11. O-O {[%clk 0:02:34]}  Bxc3 {[%clk 0:02:22]} 12. bxc3 {[%clk 0:02:35]}  O-O {[%clk 0:02:21]} 13. Ba3 {[%clk 0:02:33]}  Re8 {[%clk 0:02:21]} 14. c5 {[%clk 0:02:25]}  Na6 {[%clk 0:01:59]} 15. Rab1 {[%clk 0:02:14]}  Qc7 {[%clk 0:01:41]} 16. Nd4 {[%clk 0:01:44]}  Nxc5 {[%clk 0:01:34]} 17. Nb5 {[%clk 0:01:26]}  Qc8 {[%clk 0:01:18]} 18. Bg4 {[%clk 0:01:08]}  a6 {[%clk 0:00:45]} 19. Nd6 {[%clk 0:01:03]}  Nxd6 {[%clk 0:00:45]} 20. exd6 {[%clk 0:01:04]}  b5 {[%clk 0:00:40]} 21. c4 {[%clk 0:00:53]}  Nd3 {[%clk 0:00:38]} 22. Qe3 {[%clk 0:00:41]}  bxc4 {[%clk 0:00:37]} 23. Be2 {[%clk 0:00:23]}  Bd5 {[%clk 0:00:31]} 24. Bxd3 {[%clk 0:00:16]}  cxd3 {[%clk 0:00:32]} 25. Rfc1 {[%clk 0:00:16]}  Qd8 {[%clk 0:00:32]} 26. Rb2 {[%clk 0:00:09]}  Qf6 {[%clk 0:00:28]} 27. Qxd3 {[%clk 0:00:08]}  Qg6 {[%clk 0:00:18]} 28. Qxg6 {[%clk 0:00:06]}  hxg6 {[%clk 0:00:19]} 29. Rc7 {[%clk 0:00:06]}  Bc6 {[%clk 0:00:18]} 30. Bc5 {[%clk 0:00:06]}  Rec8 {[%clk 0:00:11]} 31. f3 {[%clk 0:00:03]}  g5 {[%clk 0:00:11]} 32. Kf2 {[%clk 0:00:03]}  f6 {[%clk 0:00:11]} 33. Ke3 {[%clk 0:00:04]}  Kf7 {[%clk 0:00:11]} 34. Kd3 {[%clk 0:00:04]}  Kg6 {[%clk 0:00:11]} 35. Rb4 {[%clk 0:00:04]}  e5 {[%clk 0:00:11]} 36. a4 {[%clk 0:00:04]}  Kf5 {[%clk 0:00:11]} 37. a5 {[%clk 0:00:04]}  Ke6 {[%clk 0:00:12]} 38. Rb6 {[%clk 0:00:04]}  Bb5+ {[%clk 0:00:11]} 39. Kc3 {[%clk 0:00:04]}  Bc6 {[%clk 0:00:11]} 40. Bb4 {[%clk 0:00:05]}  Ba4 {[%clk 0:00:10]} 41. Kc4 {[%clk 0:00:05]}  Bb5+ {[%clk 0:00:10]} 42. Kc5 {[%clk 0:00:05]}  Bf1 {[%clk 0:00:11]} 43. Bc3 {[%clk 0:00:06]}  Bxg2 {[%clk 0:00:10]} 44. Rb7 {[%clk 0:00:05]}  Rxc7+ {[%clk 0:00:09]} 45. dxc7 {[%clk 0:00:05]}  Rc8 {[%clk 0:00:09]} 46. Kb6 {[%clk 0:00:05]}  d5 {[%clk 0:00:08]} 47. Rb8 {[%clk 0:00:05]}  Kd7 {[%clk 0:00:09]} 48. Bb4 {[%clk 0:00:05]}  d4 {[%clk 0:00:09]} 49. Bd6 {[%clk 0:00:04]}  d3 {[%clk 0:00:09]} 50. Bb4 {[%clk 0:00:03]}  Bxf3 {[%clk 0:00:09]} 51. Kxa6 {[%clk 0:00:02]}  e4 {[%clk 0:00:09]} 52. Rxc8 {[%clk 0:00:02]}  Kxc8 {[%clk 0:00:08]} 53. Kb6 {[%clk 0:00:02]}  e3 {[%clk 0:00:08]} 54. a6 {[%clk 0:00:02]}  d2 {[%clk 0:00:09]} 0-1


[Site "https://www.chess.com"]

[Event "Titled Tuesday Blitz March 01 Late 2022"]
[White "Winkels, Marcel"]
[Black "Atanejhad, Sahebali"]
[WhiteFideId "1003887"]
[BlackFideId "12506664"]
[WhiteElo "1900"]
[BlackElo "1978"]
[Result "0-1"]
[Round "05"]
[TimeControl "180+1"]
[Date "2022.03.02"]
[WhiteClock "0:00:14"]
[BlackClock "0:00:23"]

1. b3 {[%clk 0:03:00]}  c5 {[%clk 0:02:59]} 2. Bb2 {[%clk 0:03:00]}  Nc6 {[%clk 0:02:59]} 3. e3 {[%clk 0:03:00]}  e5 {[%clk 0:02:58]} 4. d3 {[%clk 0:02:58]}  d5 {[%clk 0:02:57]} 5. Nf3 {[%clk 0:02:58]}  f6 {[%clk 0:02:56]} 6. Be2 {[%clk 0:02:58]}  Bd6 {[%clk 0:02:56]} 7. O-O {[%clk 0:02:57]}  Nge7 {[%clk 0:02:56]} 8. Nbd2 {[%clk 0:02:56]}  Be6 {[%clk 0:02:55]} 9. c4 {[%clk 0:02:55]}  d4 {[%clk 0:02:54]} 10. exd4 {[%clk 0:02:47]}  cxd4 {[%clk 0:02:52]} 11. Ne4 {[%clk 0:02:46]}  Bb8 {[%clk 0:02:41]} 12. Nc5 {[%clk 0:02:42]}  Bc8 {[%clk 0:02:40]} 13. b4 {[%clk 0:02:31]}  Nxb4 {[%clk 0:02:30]} 14. Qa4+ {[%clk 0:02:25]}  Nbc6 {[%clk 0:02:27]} 15. Ba3 {[%clk 0:02:14]}  O-O {[%clk 0:02:26]} 16. Rab1 {[%clk 0:02:14]}  b6 {[%clk 0:02:26]} 17. Ne4 {[%clk 0:02:12]}  h6 {[%clk 0:02:22]} 18. c5 {[%clk 0:02:05]}  f5 {[%clk 0:02:21]} 19. Ng3 {[%clk 0:02:01]}  e4 {[%clk 0:02:10]} 20. dxe4 {[%clk 0:01:56]}  Bxg3 {[%clk 0:02:09]} 21. hxg3 {[%clk 0:01:55]}  fxe4 {[%clk 0:02:09]} 22. Nd2 {[%clk 0:01:21]}  Bf5 {[%clk 0:01:45]} 23. Bb5 {[%clk 0:01:14]}  Rc8 {[%clk 0:01:31]} 24. Rfe1 {[%clk 0:01:12]}  e3 {[%clk 0:01:18]} 25. fxe3 {[%clk 0:01:08]}  Bxb1 {[%clk 0:01:17]} 26. Nxb1 {[%clk 0:01:01]}  dxe3 {[%clk 0:01:15]} 27. Nc3 {[%clk 0:00:48]}  Qd2 {[%clk 0:01:12]} 28. Qc4+ {[%clk 0:00:27]}  Kh8 {[%clk 0:01:09]} 29. Rd1 {[%clk 0:00:24]}  Qf2+ {[%clk 0:00:46]} 30. Kh2 {[%clk 0:00:23]}  Ne5 {[%clk 0:00:28]} 31. Qh4 {[%clk 0:00:17]}  Nf5 {[%clk 0:00:26]} 32. Qh3 {[%clk 0:00:16]}  Nf3+ {[%clk 0:00:23]} 33. Kh1 {[%clk 0:00:14]}  Nxg3+ {[%clk 0:00:23]} 0-1


[Site "https://www.chess.com"]

[Event "Titled Tuesday Blitz March 01 Late 2022"]
[White "Yedidia, Daniel"]
[Black "Gerbelli Neto, Eduardo"]
[WhiteFideId "30905907"]
[BlackFideId "2103281"]
[WhiteElo "2472"]
[BlackElo "2178"]
[Result "1-0"]
[Round "05"]
[TimeControl "180+1"]
[Date "2022.03.02"]
[WhiteClock "0:01:53"]
[BlackClock "0:01:07"]

1. d4 {[%clk 0:02:56]}  d5 {[%clk 0:02:59]} 2. c4 {[%clk 0:02:56]}  c6 {[%clk 0:03:00]} 3. Nf3 {[%clk 0:02:56]}  Nf6 {[%clk 0:02:59]} 4. Nc3 {[%clk 0:02:56]}  e6 {[%clk 0:03:00]} 5. e3 {[%clk 0:02:56]}  Nbd7 {[%clk 0:03:00]} 6. Bd3 {[%clk 0:02:56]}  dxc4 {[%clk 0:03:00]} 7. Bxc4 {[%clk 0:02:57]}  b5 {[%clk 0:03:00]} 8. Be2 {[%clk 0:02:58]}  a6 {[%clk 0:03:01]} 9. e4 {[%clk 0:02:57]}  c5 {[%clk 0:02:53]} 10. e5 {[%clk 0:02:51]}  cxd4 {[%clk 0:02:52]} 11. Qxd4 {[%clk 0:02:49]}  Bc5 {[%clk 0:02:41]} 12. Qh4 {[%clk 0:02:36]}  Nd5 {[%clk 0:02:29]} 13. Qxd8+ {[%clk 0:02:32]}  Kxd8 {[%clk 0:02:29]} 14. Nxd5 {[%clk 0:02:32]}  exd5 {[%clk 0:02:29]} 15. Bf4 {[%clk 0:02:30]}  h6 {[%clk 0:02:20]} 16. O-O {[%clk 0:02:30]}  Ke7 {[%clk 0:02:19]} 17. Rfd1 {[%clk 0:02:28]}  Bb7 {[%clk 0:02:20]} 18. Nd4 {[%clk 0:02:27]}  g6 {[%clk 0:02:15]} 19. h3 {[%clk 0:02:13]}  Nf8 {[%clk 0:01:55]} 20. Rac1 {[%clk 0:02:06]}  Rc8 {[%clk 0:01:55]} 21. Be3 {[%clk 0:02:00]}  Bxd4 {[%clk 0:01:44]} 22. Rxc8 {[%clk 0:01:58]}  Bxc8 {[%clk 0:01:45]} 23. Bxd4 {[%clk 0:01:57]}  Ne6 {[%clk 0:01:44]} 24. Bc3 {[%clk 0:01:56]}  Bb7 {[%clk 0:01:43]} 25. Bb4+ {[%clk 0:01:54]}  Kd7 {[%clk 0:01:34]} 26. Bf3 {[%clk 0:01:55]}  Nf4 {[%clk 0:01:16]} 27. Bd2 {[%clk 0:01:54]}  Nd3 {[%clk 0:01:12]} 28. Bc3 {[%clk 0:01:54]}  Nf4 {[%clk 0:01:07]} 29. e6+ {[%clk 0:01:53]} 1-0


[Site "https://www.chess.com"]

[Event "Titled Tuesday Blitz March 01 Late 2022"]
[White "Yuan, Qingyu"]
[Black "Cupid, Kevin"]
[WhiteFideId "8609772"]
[BlackFideId "7700512"]
[WhiteElo "2359"]
[BlackElo "2096"]
[Result "1-0"]
[Round "05"]
[TimeControl "180+1"]
[Date "2022.03.01"]
[WhiteClock "0:01:32"]
[BlackClock "0:00:07"]

1. e4 {[%clk 0:03:00]}  c6 {[%clk 0:02:59]} 2. Nf3 {[%clk 0:03:00]}  d5 {[%clk 0:03:00]} 3. Nc3 {[%clk 0:03:00]}  dxe4 {[%clk 0:02:59]} 4. Nxe4 {[%clk 0:03:01]}  Nf6 {[%clk 0:03:00]} 5. Qe2 {[%clk 0:03:00]}  Nxe4 {[%clk 0:02:59]} 6. Qxe4 {[%clk 0:03:01]}  Nd7 {[%clk 0:02:59]} 7. d4 {[%clk 0:03:01]}  Nf6 {[%clk 0:03:00]} 8. Qf4 {[%clk 0:03:01]}  Nd5 {[%clk 0:02:43]} 9. Qd2 {[%clk 0:03:01]}  g6 {[%clk 0:02:43]} 10. c4 {[%clk 0:02:52]}  Nc7 {[%clk 0:02:39]} 11. h3 {[%clk 0:02:50]}  Bg7 {[%clk 0:02:39]} 12. Be2 {[%clk 0:02:44]}  O-O {[%clk 0:02:39]} 13. O-O {[%clk 0:02:43]}  b5 {[%clk 0:02:39]} 14. Qc2 {[%clk 0:02:36]}  Bf5 {[%clk 0:02:34]} 15. Bd3 {[%clk 0:02:29]}  Bxd3 {[%clk 0:02:32]} 16. Qxd3 {[%clk 0:02:30]}  bxc4 {[%clk 0:02:28]} 17. Qxc4 {[%clk 0:02:30]}  Qd5 {[%clk 0:02:04]} 18. Qa4 {[%clk 0:02:26]}  Nb5 {[%clk 0:02:03]} 19. Be3 {[%clk 0:02:24]}  Rfd8 {[%clk 0:02:01]} 20. Rfd1 {[%clk 0:02:17]}  Rab8 {[%clk 0:01:58]} 21. Rac1 {[%clk 0:02:16]}  Rdc8 {[%clk 0:01:21]} 22. Rc5 {[%clk 0:02:14]}  Qe4 {[%clk 0:01:07]} 23. Ng5 {[%clk 0:01:56]}  Qd5 {[%clk 0:00:34]} 24. Rxd5 {[%clk 0:01:54]}  cxd5 {[%clk 0:00:35]} 25. Nf3 {[%clk 0:01:49]}  Rc4 {[%clk 0:00:18]} 26. Qb3 {[%clk 0:01:48]}  Rb6 {[%clk 0:00:14]} 27. Qd3 {[%clk 0:01:40]}  Nd6 {[%clk 0:00:12]} 28. Ne5 {[%clk 0:01:38]}  Rc7 {[%clk 0:00:11]} 29. b3 {[%clk 0:01:37]}  Ne4 {[%clk 0:00:09]} 30. Rc1 {[%clk 0:01:34]}  Rxc1+ {[%clk 0:00:08]} 31. Bxc1 {[%clk 0:01:34]}  e6 {[%clk 0:00:07]} 32. Qc2 {[%clk 0:01:32]} 1-0


[Site "https://www.chess.com"]

[Event "Titled Tuesday Blitz March 01 Late 2022"]
[White "Zhurbinsky, David"]
[Black "Maltsevskaya, Aleksandra"]
[WhiteFideId "2072904"]
[BlackFideId "24174041"]
[WhiteElo "2526"]
[BlackElo "2283"]
[Result "0-1"]
[Round "05"]
[TimeControl "180+1"]
[Date "2022.03.02"]
[WhiteClock "0:00:18"]
[BlackClock "0:00:56"]

1. e4 {[%clk 0:03:00]}  c5 {[%clk 0:02:28]} 2. Nf3 {[%clk 0:02:59]}  e6 {[%clk 0:02:29]} 3. c4 {[%clk 0:02:59]}  Nc6 {[%clk 0:02:29]} 4. d4 {[%clk 0:03:00]}  cxd4 {[%clk 0:02:30]} 5. Nxd4 {[%clk 0:03:00]}  Nf6 {[%clk 0:02:30]} 6. Nc3 {[%clk 0:03:00]}  Bb4 {[%clk 0:02:30]} 7. Nxc6 {[%clk 0:03:00]}  bxc6 {[%clk 0:02:31]} 8. Bd3 {[%clk 0:03:00]}  d5 {[%clk 0:02:32]} 9. cxd5 {[%clk 0:03:01]}  exd5 {[%clk 0:02:33]} 10. exd5 {[%clk 0:02:50]}  Nxd5 {[%clk 0:02:34]} 11. O-O {[%clk 0:02:45]}  O-O {[%clk 0:02:34]} 12. Ne4 {[%clk 0:02:24]}  Bf5 {[%clk 0:02:25]} 13. a3 {[%clk 0:02:15]}  Be7 {[%clk 0:02:23]} 14. Ng3 {[%clk 0:02:11]}  Bg6 {[%clk 0:02:19]} 15. Bxg6 {[%clk 0:01:58]}  hxg6 {[%clk 0:02:20]} 16. Re1 {[%clk 0:01:59]}  Bf6 {[%clk 0:02:20]} 17. Qc2 {[%clk 0:01:54]}  Re8 {[%clk 0:02:18]} 18. Bd2 {[%clk 0:01:47]}  Qb6 {[%clk 0:02:17]} 19. Bc3 {[%clk 0:01:07]}  Bxc3 {[%clk 0:01:59]} 20. bxc3 {[%clk 0:01:08]}  Rxe1+ {[%clk 0:01:59]} 21. Rxe1 {[%clk 0:01:09]}  Qc5 {[%clk 0:02:00]} 22. c4 {[%clk 0:00:43]}  Nb6 {[%clk 0:01:51]} 23. Ne4 {[%clk 0:00:33]}  Qxa3 {[%clk 0:01:51]} 24. Ng5 {[%clk 0:00:30]}  Qa5 {[%clk 0:01:49]} 25. Qc1 {[%clk 0:00:25]}  Nxc4 {[%clk 0:01:49]} 26. Nxf7 {[%clk 0:00:16]}  Qd2 {[%clk 0:01:42]} 27. Nh6+ {[%clk 0:00:12]}  Kh7 {[%clk 0:01:36]} 28. Nf7 {[%clk 0:00:10]}  a5 {[%clk 0:01:17]} 29. Ng5+ {[%clk 0:00:06]}  Kh8 {[%clk 0:01:18]} 30. Nf7+ {[%clk 0:00:03]}  Kg8 {[%clk 0:01:18]} 31. Nh6+ {[%clk 0:00:04]}  Kh7 {[%clk 0:01:18]} 32. Nf7 {[%clk 0:00:04]}  a4 {[%clk 0:01:19]} 33. Ng5+ {[%clk 0:00:04]}  Kh8 {[%clk 0:01:19]} 34. Rd1 {[%clk 0:00:04]}  Qxc1 {[%clk 0:01:18]} 35. Rxc1 {[%clk 0:00:05]}  a3 {[%clk 0:01:19]} 36. h4 {[%clk 0:00:02]}  a2 {[%clk 0:01:19]} 37. Ra1 {[%clk 0:00:02]}  Nd2 {[%clk 0:01:19]} 38. Ne4 {[%clk 0:00:02]}  Nxe4 {[%clk 0:01:19]} 39. f3 {[%clk 0:00:01]}  Nc3 {[%clk 0:01:19]} 40. Kf2 {[%clk 0:00:02]}  Rb8 {[%clk 0:01:20]} 41. Rxa2 {[%clk 0:00:03]}  Nxa2 {[%clk 0:01:20]} 42. h5 {[%clk 0:00:04]}  gxh5 {[%clk 0:01:20]} 43. Kg3 {[%clk 0:00:05]}  Rb4 {[%clk 0:01:20]} 44. f4 {[%clk 0:00:05]}  Nc3 {[%clk 0:01:20]} 45. Kh4 {[%clk 0:00:06]}  Rxf4+ {[%clk 0:01:20]} 46. Kg5 {[%clk 0:00:07]}  Rg4+ {[%clk 0:01:19]} 47. Kf5 {[%clk 0:00:08]}  Rxg2 {[%clk 0:01:19]} 48. Ke6 {[%clk 0:00:08]}  h4 {[%clk 0:01:20]} 49. Kf7 {[%clk 0:00:09]}  Ne4 {[%clk 0:01:19]} 50. Ke6 {[%clk 0:00:10]}  c5 {[%clk 0:01:19]} 51. Ke5 {[%clk 0:00:11]}  c4 {[%clk 0:01:20]} 52. Kd5 {[%clk 0:00:11]}  c3 {[%clk 0:01:20]} 53. Kd4 {[%clk 0:00:12]}  c2 {[%clk 0:01:21]} 54. Kd3 {[%clk 0:00:13]}  c1=Q {[%clk 0:01:21]} 55. Kd4 {[%clk 0:00:14]}  Rd2+ {[%clk 0:01:20]} 56. Ke5 {[%clk 0:00:14]}  Ng3 {[%clk 0:01:20]} 57. Ke6 {[%clk 0:00:15]}  Qe1+ {[%clk 0:01:20]} 58. Kf7 {[%clk 0:00:16]}  Rf2+ {[%clk 0:01:20]} 59. Kg6 {[%clk 0:00:17]}  Qe6+ {[%clk 0:01:20]} 60. Kg5 {[%clk 0:00:17]}  Ne4+ {[%clk 0:01:13]} 61. Kh5 {[%clk 0:00:17]}  Qf5+ {[%clk 0:01:10]} 62. Kxh4 {[%clk 0:00:17]}  g5+ {[%clk 0:01:07]} 63. Kh5 {[%clk 0:00:17]}  Nf6+ {[%clk 0:01:06]} 64. Kh6 {[%clk 0:00:18]}  Ng8+ {[%clk 0:00:56]} 65. Kh5 {[%clk 0:00:18]}  Rh2# {[%clk 0:00:56]} 0-1


[Site "https://www.chess.com"]

[Event "Titled Tuesday Blitz March 01 Late 2022"]
[White "Abdrlauf, Elham"]
[Black "Gareyev, Timur"]
[WhiteFideId "1533533"]
[BlackFideId "14200937"]
[WhiteElo "2334"]
[BlackElo "2586"]
[Result "0-1"]
[Round "06"]
[TimeControl "180+1"]
[Date "2022.03.01"]
[WhiteClock "0:00:02"]
[BlackClock "0:00:01"]

1. e4 {[%clk 0:02:59]}  c5 {[%clk 0:02:34]} 2. Nf3 {[%clk 0:02:59]}  Nc6 {[%clk 0:02:32]} 3. d4 {[%clk 0:02:59]}  cxd4 {[%clk 0:02:33]} 4. Nxd4 {[%clk 0:02:59]}  Nf6 {[%clk 0:02:33]} 5. Nc3 {[%clk 0:03:00]}  d6 {[%clk 0:02:33]} 6. Bc4 {[%clk 0:03:00]}  Qb6 {[%clk 0:02:30]} 7. Nb3 {[%clk 0:03:00]}  e6 {[%clk 0:02:30]} 8. Bf4 {[%clk 0:03:00]}  Ne5 {[%clk 0:02:28]} 9. Be2 {[%clk 0:03:00]}  a6 {[%clk 0:02:28]} 10. g4 {[%clk 0:02:59]}  Qc6 {[%clk 0:02:27]} 11. Nd4 {[%clk 0:02:48]}  Qb6 {[%clk 0:02:26]} 12. Nb3 {[%clk 0:02:48]}  h6 {[%clk 0:02:21]} 13. h4 {[%clk 0:02:44]}  Bd7 {[%clk 0:02:09]} 14. Rg1 {[%clk 0:02:36]}  Bc6 {[%clk 0:02:09]} 15. Be3 {[%clk 0:02:36]}  Qc7 {[%clk 0:02:08]} 16. Qd4 {[%clk 0:02:34]}  h5 {[%clk 0:02:05]} 17. g5 {[%clk 0:02:31]}  Nfg4 {[%clk 0:02:05]} 18. f4 {[%clk 0:02:26]}  Ng6 {[%clk 0:01:29]} 19. O-O-O {[%clk 0:02:22]}  e5 {[%clk 0:01:20]} 20. Qd2 {[%clk 0:02:19]}  Nxe3 {[%clk 0:01:18]} 21. Qxe3 {[%clk 0:02:20]}  Nxf4 {[%clk 0:01:18]} 22. Nd5 {[%clk 0:02:07]}  Bxd5 {[%clk 0:01:17]} 23. exd5 {[%clk 0:02:08]}  Rc8 {[%clk 0:01:17]} 24. Bd3 {[%clk 0:02:00]}  g6 {[%clk 0:01:15]} 25. Rgf1 {[%clk 0:01:58]}  Be7 {[%clk 0:01:05]} 26. Rxf4 {[%clk 0:01:45]}  exf4 {[%clk 0:01:06]} 27. Qxf4 {[%clk 0:01:46]}  O-O {[%clk 0:01:04]} 28. Nd4 {[%clk 0:01:47]}  Rfe8 {[%clk 0:00:54]} 29. Rf1 {[%clk 0:01:21]}  Bf8 {[%clk 0:00:53]} 30. Nf5 {[%clk 0:01:21]}  Re5 {[%clk 0:00:44]} 31. Ng3 {[%clk 0:00:55]}  Rxd5 {[%clk 0:00:37]} 32. Qf3 {[%clk 0:00:29]}  Rc5 {[%clk 0:00:35]} 33. Qf2 {[%clk 0:00:18]}  d5 {[%clk 0:00:31]} 34. Nxh5 {[%clk 0:00:14]}  gxh5 {[%clk 0:00:30]} 35. Qf5 {[%clk 0:00:14]}  Bg7 {[%clk 0:00:28]} 36. Qh7+ {[%clk 0:00:14]}  Kf8 {[%clk 0:00:28]} 37. Bg6 {[%clk 0:00:14]}  Rxc2+ {[%clk 0:00:17]} 38. Bxc2 {[%clk 0:00:15]}  Qe5 {[%clk 0:00:12]} 39. Qf5 {[%clk 0:00:08]}  Qxb2+ {[%clk 0:00:12]} 40. Kd1 {[%clk 0:00:08]}  Qa1+ {[%clk 0:00:10]} 41. Kd2 {[%clk 0:00:07]}  Qd4+ {[%clk 0:00:10]} 42. Kc1 {[%clk 0:00:06]}  Rc7 {[%clk 0:00:07]} 43. g6 {[%clk 0:00:05]}  Qe3+ {[%clk 0:00:08]} 44. Kd1 {[%clk 0:00:05]}  Bh6 {[%clk 0:00:08]} 45. g7+ {[%clk 0:00:01]}  Bxg7 {[%clk 0:00:07]} 46. Qd3 {[%clk 0:00:01]}  Qe5 {[%clk 0:00:05]} 47. Qf5 {[%clk 0:00:02]}  Qa1+ {[%clk 0:00:04]} 48. Ke2 {[%clk 0:00:02]}  Re7+ {[%clk 0:00:03]} 49. Kf2 {[%clk 0:00:01]}  Qc3 {[%clk 0:00:02]} 50. Kg2 {[%clk 0:00:01]}  Be5 {[%clk 0:00:02]} 51. Rf3 {[%clk 0:00:01]}  Qd2+ {[%clk 0:00:02]} 52. Rf2 {[%clk 0:00:02]}  Qh6 {[%clk 0:00:02]} 53. Kf1 {[%clk 0:00:03]}  Bd4 {[%clk 0:00:01]} 54. Re2 {[%clk 0:00:03]}  Qc1+ {[%clk 0:00:02]} 55. Bd1 {[%clk 0:00:02]}  Qxd1+ {[%clk 0:00:01]} 0-1


[Site "https://www.chess.com"]

[Event "Titled Tuesday Blitz March 01 Late 2022"]
[White "Abdyzhapar, Asylbek"]
[Black "Golubev, Mikhail"]
[WhiteFideId "13800337"]
[BlackFideId "14100983"]
[WhiteElo "2331"]
[BlackElo "2374"]
[Result "0-1"]
[Round "06"]
[TimeControl "180+1"]
[Date "2022.03.01"]
[WhiteClock "0:00:40"]
[BlackClock "0:00:44"]

1. e4 {[%clk 0:02:59]}  c5 {[%clk 0:02:58]} 2. Nf3 {[%clk 0:02:59]}  d6 {[%clk 0:02:58]} 3. d4 {[%clk 0:02:59]}  Nf6 {[%clk 0:02:58]} 4. Nc3 {[%clk 0:02:58]}  cxd4 {[%clk 0:02:58]} 5. Nxd4 {[%clk 0:02:58]}  g6 {[%clk 0:02:58]} 6. Be3 {[%clk 0:02:55]}  Bg7 {[%clk 0:02:59]} 7. f3 {[%clk 0:02:55]}  Nc6 {[%clk 0:02:59]} 8. Qd2 {[%clk 0:02:55]}  O-O {[%clk 0:02:59]} 9. O-O-O {[%clk 0:02:52]}  d5 {[%clk 0:02:58]} 10. exd5 {[%clk 0:02:51]}  Nxd5 {[%clk 0:02:58]} 11. Nxc6 {[%clk 0:02:51]}  bxc6 {[%clk 0:02:58]} 12. Bd4 {[%clk 0:02:51]}  Bxd4 {[%clk 0:02:57]} 13. Qxd4 {[%clk 0:02:51]}  Qb6 {[%clk 0:02:58]} 14. Na4 {[%clk 0:02:16]}  Qa5 {[%clk 0:02:53]} 15. a3 {[%clk 0:01:56]}  e5 {[%clk 0:02:33]} 16. Qh4 {[%clk 0:01:43]}  Rb8 {[%clk 0:01:44]} 17. Bd3 {[%clk 0:01:38]}  Nf4 {[%clk 0:01:37]} 18. Nc3 {[%clk 0:01:34]}  Nxd3+ {[%clk 0:00:58]} 19. Rxd3 {[%clk 0:01:33]}  Bf5 {[%clk 0:00:58]} 20. Rd2 {[%clk 0:01:28]}  Rxb2 {[%clk 0:00:53]} 21. Kxb2 {[%clk 0:01:10]}  Rb8+ {[%clk 0:00:52]} 22. Kc1 {[%clk 0:01:08]}  Qxc3 {[%clk 0:00:49]} 23. Kd1 {[%clk 0:00:49]}  Qa1+ {[%clk 0:00:48]} 24. Ke2 {[%clk 0:00:48]}  Qxh1 {[%clk 0:00:47]} 25. Qg3 {[%clk 0:00:46]}  Qb1 {[%clk 0:00:45]} 26. Qxe5 {[%clk 0:00:44]}  Qb5+ {[%clk 0:00:44]} 27. Qxb5 {[%clk 0:00:40]}  Rxb5 {[%clk 0:00:44]} 0-1


[Site "https://www.chess.com"]